Cogmind - Beta 14 *** ADVENTURER MODE // 2025.03.30 @ 19:52:09 Player: NotEvil Result: Destroyed by Heavy Explosive Trap Performance ------------- Evolutions (3) 1500 Regions Visited (4) 800 Robots Destroyed (93) 465 Value Destroyed (3325) 3325 Prototype IDs (8) 160 Alien Tech Used (0) 0 Bonus (0) 0 TOTAL SCORE: 6250 Bonus ------- None Cogmind --------- Core Integrity 0/700 Matter 300/300 Energy 98/100 System Corruption 3% Temperature Cool (0) Movement Core (50) Location -7/Factory Parts ------- > --- POWER (1) -------- (None) > --- PROPULSION (3) --- (None) > --- UTILITY (6) ------ (None) > --- WEAPON (3) ------- (None) > --- INVENTORY (5) ---- Advanced Weight Redist. System Advanced ECM Suite Hardened Medium Armor Plating Remote Datajack Peak State ------------ > --- POWER ------------ Heavy Deuterium Engine > --- PROPULSION ------- Titanium Leg Improved Titanium Leg Improved Titanium Leg > --- UTILITY ---------- Cryofiber Web High-capacity Storage Unit Advanced Weight Redist. System Improved Sensor Array Advanced ECM Suite Hacking Suite > --- WEAPON ----------- Plasma Cannon Minigun Remote Datajack > --- INVENTORY -------- Improved Deuterium Engine Micro Nuclear Core Titanium Leg Titanium Leg VSS Leg Advanced Weight Redist. System Improved Signal Interpreter Improved Terrain Scanner Armor Integrity Analyzer Improved Light Armor Plating Reactive Plating Improved Shield Generator [Rating: 48] Favorites ----------- Power Improved Deuterium Engine Engine Improved Deuterium Engine Power Core Micro Nuclear Core Propulsion Titanium Leg Leg Titanium Leg Flight Unit Flight Unit Utility Advanced Visual Processing Unit Device Cryofiber Web Storage High-capacity Storage Unit Processor Advanced Visual Processing Unit Hackware Hacking Suite Protection Reactive Plating Weapon Ion Cannon Energy Gun Beam Rifle Energy Cannon Ion Cannon Ballistic Gun Minigun Ballistic Cannon Improved Light Cannon Launcher Rocket Launcher Special Weapon Remote Datajack Build | -11 -10 -9 -8 -7 ------- Run | Yrd Mat Mat Mat Fac Slots Evolved 6 | . . 2 2 2 Power . | . . . . . Propulsion 1 | . . . . 1 Utility 4 | . . 2 1 1 Weapon 1 | . . . 1 . Parts Attached 99 | 6 7 23 37 26 Power 11 | 1 . 3 2 5 Engine 8 | 1 . 3 2 2 Core 3 | . . . . 3 Reactor . | . . . . . Propulsion 26 | 2 3 4 11 6 Treads . | . . . . . Leg 21 | 2 . 4 10 5 Wheel . | . . . . . Hover . | . . . . . Flight 5 | . 3 . 1 1 Utility 31 | 1 1 10 10 9 Device 21 | 1 1 7 6 6 Storage 1 | . . . 1 . Processor 4 | . . 2 1 1 Hackware 1 | . . . 1 . Protection 4 | . . 1 1 2 Artifact . | . . . . . Weapon 31 | 2 3 6 14 6 Energy Gun 9 | 1 1 3 3 1 Energy Cannon 6 | . . . 4 2 Ballistic Gun 11 | 1 1 2 6 1 Ballistic Cannon 1 | . . . 1 . Launcher 2 | . 1 1 . . Special Weapon 2 | . . . . 2 Impact Weapon . | . . . . . Slashing Weapon . | . . . . . Piercing Weapon . | . . . . . Special Melee Weapon . | . . . . . Unidentified Prototypes 6 | . . 1 4 1 Parts Lost 31 | . 2 7 5 17 Power 3 | . . 1 1 1 Propulsion 9 | . 1 2 1 5 Utility 10 | . . 3 . 7 Weapon 9 | . 1 1 3 4 Highest Loss Streak 11 | . 1 4 3 11 To Critical Strikes . | . . . . . Average Slot Usage (%) 93 | . 96 89 98 89 Engine 7 | . 14 10 8 4 Leg 17 | . 6 12 17 20 Flight 2 | . 21 9 . . Device 24 | . 24 30 27 18 Storage 2 | . . . . 6 Processor 8 | . . 4 12 6 Hackware 3 | . . . 3 6 Energy Gun 5 | . 14 10 7 . Energy Cannon 7 | . . . 7 10 Ballistic Gun 8 | . 13 8 10 5 Peak Build Rating 48 | 6 7 17 38 48 Average Rating 29 | 3 6 12 30 39 On Entrance 12 | . 6 7 16 32 Naked Turns 82 | . . . . 82 Heaviest Build 78 | 6 8 19 64 78 Greatest Support 66 | 20 20 23 34 66 Greatest Overweight (x) 8 | . . 5 8 3 Average Overweight (x) . | . . . . . Largest Inventory Capacity 20 | 5 5 5 20 20 Average Capacity 10 | 5 5 5 6 19 Most Carried 14 | 5 5 5 10 14 Average Carried 6 | 2 4 4 4 10 Final Capacity 20 | 5 5 5 20 5 Final Carried 10 | 4 3 5 10 4 Class Distribution -------------------- 25% | Scavenger-Skirmisher 23% | Hacker-Skirmisher 17% | Hacker-Mutant 11% | Scavenger-Mutant 10% | Hacker-Tank 6% | Mutant 5% | Skirmisher Dominant Class ---------------- Scavenger-Mutant | -10/Materials Scavenger-Mutant | -9/Materials Scavenger-Skirmisher | -8/Materials Hacker-Skirmisher | -7/Factory Resources | -11 -10 -9 -8 -7 ----------- Run | Yrd Mat Mat Mat Fac Matter Collected 1761 | 250 121 239 669 482 Remotely . | . . . . . Salvage Created 3637 | 39 593 557 1610 838 Parts 207 | 2 51 31 87 36 Haulers Intercepted . | . . . . . Recyclers Shooed . | . . . . . Parts Field Recycled . | . . . . . Retrieved Matter . | . . . . . Parts Self-Destructed . | . . . . . Prevented . | . . . . . Kills | -11 -10 -9 -8 -7 ------- Run | Yrd Mat Mat Mat Fac Combat Hostiles Destroyed 81 | 1 18 12 35 15 Guns 54 | 1 18 11 22 2 Cannons 23 | . . . 11 12 AOE 3 | . . 1 2 . Classes Destroyed 12 | 1 3 2 3 3 Worker 1 | . . 1 . . Builder 1 | . 1 . . . Tunneler 1 | . . . . 1 Mechanic 1 | . . . 1 . Watcher 8 | . 2 1 4 1 Swarmer 14 | . 7 . 7 . Grunt 45 | 1 11 10 17 6 Duelist 2 | . . . 2 . Sentry 11 | . . 2 8 1 Specialist 4 | . . . . 4 Hunter 1 | . . . 1 . Programmer 3 | . . . . 3 Thug 1 | . . . . 1 Best Kill Streak 8 | 1 8 4 4 4 Combat Bots Only 5 | 1 5 3 4 3 Max Kills in Single Turn 2 | 1 1 2 2 1 Gunslinging . | . . . . . Exploded 1 | . . 1 1 . Melee . | . . . . . Uniques/NPCs Destroyed . | . . . . . Combat | -11 -10 -9 -8 -7 -------- Run | Yrd Mat Mat Mat Fac Hostile Shots Fired 537 | 5 93 83 168 188 Missed 167 | 1 41 20 56 49 Damage Taken 4158 | 35 424 636 1167 1896 Core 1164 | 18 168 107 158 713 Absorbed by Shields 190 | . . . 163 27 Ignored by Resistances 1432 | 11 137 190 387 707 Regen/Repaired (Parts) 14 | . . 14 . . Core Remaining (%) 65 | 92 25 73 71 . Volleys Fired 258 | 4 57 45 104 48 Largest 3 | 2 2 2 3 3 Hottest 180 | 60 60 112 146 180 Shots Fired 499 | 8 104 76 213 98 Gun 355 | 8 104 75 133 35 Cannon 140 | . . . 80 60 Launcher 1 | . . 1 . . Special 3 | . . . . 3 Kinetic 204 | 4 52 30 83 35 Thermal 277 | 4 52 45 116 60 Explosive 1 | . . 1 . . Electromagnetic 14 | . . . 14 . Robot Hit Streak 18 | 5 11 18 16 15 Robot Miss Streak 4 | 2 3 2 4 3 Penetration Max . | . . . . . Secondary Targets 5 | . 2 2 1 . Max Gunslinging Chain 1 | . 1 1 1 . Shots Hit Robots 372 | 5 72 60 164 71 Core Hits 164 | 2 35 22 75 30 Critical Kills 3 | . 1 . 1 1 Critical Parts Destroyed 1 | . . . 1 . Critical Strikes 11 | . 1 3 6 1 Burn 7 | . . 3 4 . Meltdown 1 | . . . . 1 Destroy 3 | . 1 . 2 . Melee Attacks . | . . . . . Impact . | . . . . . Slashing . | . . . . . Piercing . | . . . . . Sneak Attacks . | . . . . . Combat Hostiles . | . . . . . Follow-up Attacks . | . . . . . Damage Inflicted 6825 | 46 715 953 3460 1651 Guns 3784 | 46 715 905 1688 430 Cannons 2785 | . . . 1588 1197 Explosions 173 | . . 41 132 . Melee . | . . . . . Ramming 83 | . . 7 52 24 Kinetic 2231 | 15 278 365 1143 430 Thermal 4152 | 31 437 540 1947 1197 Explosive 41 | . . 41 . . Electromagnetic 318 | . . . 318 . Impact . | . . . . . Slashing . | . . . . . Piercing . | . . . . . Highest Corruption 3 | . . 3 . 3 Average Corruption 2 | . . 3 . 2 Corruption Purged . | . . . . . Corruption Blocked . | . . . . . Effects 23 | . . 3 . 20 Message Errors 6 | . . . . 6 Matter Fused 5 | . . . . 5 Heat Flow Errors 3 | . . 2 . 1 Energy Discharges 3 | . . 1 . 2 Data Loss (minor) 5 | . . . . 5 Misfires 1 | . . . . 1 Overload Shots . | . . . . . Overflow Damage 28 | . . . 16 12 Projectiles 28 | . . . 16 12 Explosions . | . . . . . Melee . | . . . . . Knockbacks 2 | . . 1 1 . Impact 1 | . . 1 . . Kinetic 1 | . . . 1 . Secondary . | . . . . . Self-Inflicted Damage 19 | . . . 17 2 Shots 1 | . . . 1 . Rammed 5 | . . . . 5 Targets Rammed 20 | . . 1 12 7 Kicked 15 | . . 1 12 2 Crushed . | . . . . . Highest Temperature 584 | 64 20 465 382 584 Average Temperature 129 | 36 6 210 106 169 Received Heat Transfer 1922 | 24 216 354 668 660 Effects 24 | . . 6 1 17 Shutdowns 3 | . . 1 . 2 Energy Bleed 3 | . . 1 . 2 Interference 8 | . . 2 1 5 Matter Decay 1 | . . . . 1 Damage (minor) 4 | . . 2 . 2 Damage (major) 5 | . . . . 5 Siege Activations . | . . . . . Robots Corrupted . | . . . . . Combat Hostiles . | . . . . . Parts Fried 1 | . . . 1 . Impact Corruptions . | . . . . . Robots Melted 1 | . . . . 1 Combat Hostiles 1 | . . . . 1 Parts Melted 12 | . . 1 3 8 Heat Transferred 8335 | 75 975 1543 3689 2053 Parts Sabotaged . | . . . . . Parts Stolen . | . . . . . Parts Stripped . | . . . . . Power Chain Reactions 2 | . . . 2 . Alert | -11 -10 -9 -8 -7 ------- Run | Yrd Mat Mat Mat Fac Peak Influence 366 | 20 366 309 359 180 Initial 127 | . 11 127 52 70 Average 96 | 3 248 172 103 43 Maximum Alert Level 1 | . 1 1 1 . Low Security (%) 89 | 100 25 70 94 100 Level 1 10 | . 74 29 5 . Level 2 . | . . . . . Level 3 . | . . . . . Level 4 . | . . . . . Level 5 . | . . . . . High Security . | . . . . . Max Security . | . . . . . Squads Dispatched 23 | . 5 2 6 10 Investigation 10 | . 5 1 2 2 Extermination 3 | . . . . 3 Reinforcement 10 | . . 1 4 5 Assault . | . . . . . Garrison . | . . . . . Intercept . | . . . . . Searches Triggered . | . . . . . Construction Impeded 1 | . . . 1 . Haulers Reinforced . | . . . . . Active Scanning Responses . | . . . . . Cargo Convoy Interrupts 1 | . . . . 1 Stealth | -11 -10 -9 -8 -7 --------- Run | Yrd Mat Mat Mat Fac Distress Signals 4 | . 1 1 2 . Communications Jammed . | . . . . . Distress Signals . | . . . . . Times Spotted 120 | 1 25 19 50 25 Peak Tracking Total 6 | 1 6 5 5 4 Tactical Retreats 8 | . 1 1 3 3 Traps | -11 -10 -9 -8 -7 ------- Run | Yrd Mat Mat Mat Fac Traps Triggered 7 | . 2 . 2 3 Indirectly . | . . . . . Trap Hack Attempts . | . . . . . Triggered . | . . . . . Disarmed 6 | . 6 . . . Reprogrammed 6 | . . 6 . . Reused 1 | . . 1 . . Traps Extracted . | . . . . . Installed . | . . . . . Triggered 2 | . . 1 . 1 Machines | -11 -10 -9 -8 -7 ---------- Run | Yrd Mat Mat Mat Fac Machines Disabled 3 | . . 1 2 . Max in Single Turn 1 | . . 1 1 . Machines Repaired . | . . . . . Machines Dismantled . | . . . . . Machines Sabotaged . | . . . . . Overloaded Fab Kills . | . . . . . Hacking | -11 -10 -9 -8 -7 --------- Run | Yrd Mat Mat Mat Fac Machines Accessed 25 | . 7 5 8 5 Terminals 17 | . 5 4 5 3 Fabricators 1 | . . . . 1 Repair Stations 2 | . . 1 . 1 Recycling Units 4 | . 2 . 2 . Scanalyzers 1 | . . . 1 . Garrison Access . | . . . . . Total Hacks 65 | . 21 15 18 11 Successful 44 | . 16 11 12 5 Failed 21 | . 5 4 6 6 Catastrophic 2 | . 1 . 1 . Database Lockouts . | . . . . . Manual 6 | . 1 . 4 1 Terminals 47 | . 17 13 11 6 Fabricators 3 | . . . . 3 Repair Stations 4 | . . 2 . 2 Recycling Units 9 | . 4 . 5 . Scanalyzers 2 | . . . 2 . Garrison Access . | . . . . . Terminal Hacks 31 | . 12 9 6 4 Record 13 | . 5 6 1 1 Prototype ID Bank 1 | . . . 1 . Open DSF 1 | . . . . 1 Emergency Access Points 3 | . 1 . 1 1 Terminal Index 1 | . 1 . . . Alert Level 3 | . 1 . 2 . Unreport Threat 4 | . 1 1 1 1 Disarm Traps 1 | . 1 . . . Reprogram Traps 1 | . . 1 . . Maintenance Status 1 | . 1 . . . Zone Layout 2 | . 1 1 . . Fabricator Hacks 1 | . . . . 1 Load Schematic 1 | . . . . 1 Repair Station Hacks 2 | . . 2 . . Scan Component 1 | . . 1 . . Repair 1 | . . 1 . . Recycling Unit Hacks 8 | . 4 . 4 . Recycle Component 4 | . 2 . 2 . Process 3 | . 1 . 2 . Report Inventory 1 | . 1 . . . Scanalyzer 2 | . . . 2 . Insert Component 1 | . . . 1 . Analyze 1 | . . . 1 . Garrison Access Hacks . | . . . . . Unauthorized Hacks . | . . . . . Terminals . | . . . . . Fabricators . | . . . . . Repair Stations . | . . . . . Recycling Units . | . . . . . Scanalyzers . | . . . . . Garrison Access . | . . . . . Data Cores Recovered . | . . . . . Used . | . . . . . Hacking Detections 18 | . 5 4 4 5 Full Trace Events 8 | . 4 1 1 2 Feedback Events . | . . . . . Feedback Blocked . | . . . . . Robot Schematics Acquired . | . . . . . Robots Built . | . . . . . Authchips . | . . . . . Time . | . . . . . Total Robot Build Rating . | . . . . . Part Schematics Acquired 1 | . . . 1 . Parts Built . | . . . . . Authchips . | . . . . . Time . | . . . . . Total Part Build Rating . | . . . . . Parts Repaired 1 | . . 1 . . Time 26 | . . 26 . . Parts Recycled 4 | . 2 . 2 . Recycled Matter 169 | . 95 . 74 . Retrieved Matter . | . . . . . Retrieved Components . | . . . . . Parts Scanalyzed 1 | . . . 1 . Part Schematics Acquired 1 | . . . 1 . Parts Damaged . | . . . . . Bothacking | -11 -10 -9 -8 -7 ------------ Run | Yrd Mat Mat Mat Fac Used RIF Installer . | . . . . . Robots Hacked 3 | . . . . 3 Non-combat 2 | . . . . 2 Combat 1 | . . . . 1 Robot Hacks Applied 3 | . . . . 3 parse_system 2 | . . . . 2 find_station 1 | . . . . 1 Relay Couplers Released . | . . . . . Fabnet Peak Effective % . | . . . . . Robots Rewired . | . . . . . Allies Hacked . | . . . . . Hacks Repelled . | . . . . . Allies | -11 -10 -9 -8 -7 -------- Run | Yrd Mat Mat Mat Fac Total Allies . | . . . . . Largest Group . | . . . . . Highest-Rated Group . | . . . . . Highest-Rated Ally . | . . . . . Total Orders . | . . . . . Ally Attacks . | . . . . . Total Damage . | . . . . . Kills . | . . . . . Allies Corrupted . | . . . . . Allies Melted . | . . . . . Intel | -11 -10 -9 -8 -7 ------- Run | Yrd Mat Mat Mat Fac Robot Analysis Total . | . . . . . Derelict Logs Recovered . | . . . . . Drone Launches . | . . . . . Drone Recoveries . | . . . . . Exploration | -11 -10 -9 -8 -7 ------------- Run | Yrd Mat Mat Mat Fac Turns Passed 5683 | 97 353 653 2505 2075 Spaces Moved 3243 | 72 392 383 1302 1094 Core 186 | 19 . 1 1 165 Treads . | . . . . . Legs 2483 | 53 32 193 1301 904 Wheels . | . . . . . Hover . | . . . . . Flight 574 | . 360 189 . 25 Fastest Speed 37 | 50 37 37 120 50 Average Speed 138 | 101 43 122 145 170 Slowest Speed 450 | 120 120 300 450 340 Overloaded Moves . | . . . . . Propulsion Burnouts . | . . . . . Robots Hopped 7 | . 7 . . . Cave-ins Triggered . | . . . . . Exploration Rate (%) 36 | 9 43 27 85 16 Regions Visited 4 Branch Regions . Pre-discovered Areas . | . . . . . Known Exits Taken 1 | . . 1 . . Unknown Exits Taken 3 | 1 1 . 1 . Scrap Searched . | . . . . . Spaces Dug . | . . . . . Terrain Destroyed 22 | . . 9 13 . Melee . | . . . . . Projectile 3 | . . . 3 . AOE 19 | . . 9 10 . Terrain Rammed . | . . . . . Walls Destroyed . | . . . . . Machines Disabled . | . . . . . Actions | -11 -10 -9 -8 -7 --------- Run | Yrd Mat Mat Mat Fac Total 4005 | 86 472 494 1731 1222 Wait 258 | . 7 17 217 17 Move 3225 | 71 377 382 1301 1094 Hop 7 | . 7 . . . Pick Up 67 | 5 9 13 28 12 Fast Attach 37 | 5 2 8 17 5 Attach 35 | 1 3 8 7 16 Detach 12 | . 1 4 1 6 Swap 27 | . 2 7 13 5 Drop 59 | . 7 9 31 12 Fire 258 | 4 57 45 104 48 Melee . | . . . . . Ram 5 | . . . . 5 Kick 15 | . . 1 12 2 Crush . | . . . . . Escape Stasis . | . . . . . Rewire . | . . . . . Trap . | . . . . . Miscellaneous . | . . . . . Route ------- -11/Scrapyard -10/Materials (discovered 2 exits: *Mat x2) -9/Materials -8/Materials (discovered 4 exits: *Fac x3 / [*Sto]) -7/Factory (discovered 1 exit: [*Fac]) History --------- Turn | Location | Event 2 | -11/Scrapyard | Met Revision 17 66 | -11/Scrapyard | Discovered new exit (range 8) 98 | -11/Scrapyard | Entered Materials 296 | -10/Materials | Discovered new exit (range 5) 373 | -10/Materials | Core integrity fell below 50% 421 | -10/Materials | Discovered new exit (range 15) 451 | -10/Materials | Entered another Materials area 451 | -9/Materials | Evolved 2 slots: Utility x2 477 | -9/Materials | Build established: Scavenger-Mutant 599 | -9/Materials | Repaired Sensor Array 896 | -9/Materials | Discovered new exit (range 16) 933 | -9/Materials | Identified exit to Materials 1054 | -9/Materials | Lost 4 parts (2n2u) 1104 | -9/Materials | Entered another Materials area 1104 | -8/Materials | Evolved 2 slots: Utility x1, Weapon x1 1311 | -8/Materials | Build established: Scavenger-Skirmisher 1683 | -8/Materials | Lost 3 parts (1n2w) 1719 | -8/Materials | Discovered new exit (range 16) 1776 | -8/Materials | Discovered new exit (range 18) 2580 | -8/Materials | Discovered new exit (range 18) 2914 | -8/Materials | Build established: Hacker-Tank 3527 | -8/Materials | Discovered new exit (range 20) 3609 | -8/Materials | Entered Factory 3609 | -7/Factory | Evolved 2 slots: Propulsion x1, Utility x1 3768 | -7/Factory | Build established: Hacker-Mutant 4298 | -7/Factory | Build established: Hacker-Skirmisher 4316 | -7/Factory | Cargo convoy interrupted 5172 | -7/Factory | Discovered new exit (range 15) 5206 | -7/Factory | Lost 3 parts (2u1w) 5566 | -7/Factory | Core integrity fell below 50% 5592 | -7/Factory | Lost 11 parts (5n4u2w) 5646 | -7/Factory | Core integrity fell below 20% 5660 | -7/Factory | Released all parts (2) 5684 | -7/Factory | Destroyed by Heavy Explosive Trap Last Messages --------------- 05565_ M-28 Smith repairs G-47 Trooper. 05570_ Acquired 37 matter. 05582_ Acquired 39 matter. 05609_ K-01 Serf collects debris. 05615_ H-61 Shepherd calls for reinforcements. 05615_ ALERT: Suspicious intruders detected, dispatching Cutter reinforcements to area. 05616_ Knocked back. 05621_ Acquired Cesium-ion Thruster. 05637_ Slammed into G-47 Trooper. 05660_ Released Cesium-ion Thruster. 05660_ Released Mic. Nuclear Core. 05662_ K-01 Serf collects debris. 05666_ Acquired 12 matter. 05668_ K-01 Serf collects debris. 05670_ K-01 Serf destroyed. 05684_ Triggered Heavy Explosive Trap. 05684_ An explosion rips through the floor. [Achievement: First Step to Greatness] [Achievement: 5k Club] Map ----- +----------------------------------------------------+ | ?????????????????????????????????????"" """ """ " | | ??????????????????????????????????????# """ """ " | | ??????????????????????????????????????# """ """ " | | ??????????????????????????????????????# | | ??????????????????????????????????????# | | ?????????????????????????????????#########/###### | | ?????????????????????????????????# #??? | | ???????????????##########????????# #??? | | ?????#######???# ########## #??? | | ?????? ???# !!! ## ## #### | | ???????? ??#! !!! ## """" ## """ """[ # | | ?????????? ?# !!! ## """" ## """ """ #!! | | ???????????# # ## """" ## """ """ #! | | ???????????# ####+###### """" ## # | | ???????????# =% = # """" ## """ """ #! | | ???????????# [ = # """" ## """ """ # | | ???????????# # """" ## """ """ + "" | | ???????????## ######## # ## # "" | | ????????????# # ! % # # " "" ######+##+##### F | | ????????????# # ![ # # "R"" #????# #???# "" | | ????????????# # ![ # + """" #????# #???# "" | | ????????????# # + # #????# #???# | | ############# # # ####+######## #???#+## | | # #^ ##### #???# | | # # #???#%##### | | # # @ #???# = | | #### ^ ######## #???#%%*%##/## | | ???# """ ######## % #???# ## | | ?### """ ^""" ### #???# ## | | ## """ """ #?# #???# ## | | = """ = #?# ##### ## * | | ## ! #?# + = | | ?# % #?############# | | ?######"T"#############"""T"""###?????????????# | | ??????#"""#???????????#########???????????????# | | ??????#####???????????????????????????????????#### | | | | | | | | | | | | | | | | | | | | | | | | | | | | | +----------------------------------------------------+ Best States ------------- Heat Dissipation 60 Energy Generation 18 Energy Capacity 310 Matter Stores 300 Matter Capacity 300 Sight Range 20 Robot Scan Range 15 Terrain Scan Range 16 Terrain Scan Density 110 ECM Strength 2 Additional Mass Support 9 Base Temperature (-) 100 Armor Coverage 150 Resistance: KI 40 Resistance: TH 20 Resistance: EX 20 Resistance: EM 20 Resistance: I 20 Resistance: S 20 Resistance: P 20 Evasion (%) 62 Offensive Hacking 20 Item Schematics ----------------- Imp. Shield Generator | -8/Materials | Scanalyzed Robot Schematics ------------------ None Fabricated ------------ Nothing Alien Tech Used ----------------- None Achievements -------------- 5k Club Crack Shot Everything Is Under Control First Step to Greatness I Spy It's Just You Librarian Made in Tau Ceti IV Novice Programmer One Hack Too Far Part-time Mechanic Risk Taker Uninvited Guest Challenges ------------ None Game ------ Seed WeightBattleInjector Manual? 0 Play Time 01:55:19 Cumulative 1.8 hours Start 2025.03.21 @ 07:43:55 End 2025.03.30 @ 19:52:09 Sessions 3 Manual Loads 0 Difficulty Adventurer Special Mode None Game No. 1 Rogue 0 Adventurer 1 Explorer 0 Win Type - Total 0 Types 0/0/0/0/0/0/0/0/0 Lore% 1 Gallery% 5 Achievement% 5 Wizard Run 0 Options --------- Layout 2 ASCII 0 Keyboard 0 Movement Arrows Keybinds 0 Fullscreen 1 Font 20/SmallcapsGlow Map View 60x59 Zoom Use 0% Tactical HUD 1 Map Filters NONE Filters NONE Steam 0 RUN: de77ac1d-2653-48f4-adff-059119b528b8